Cogmind - Beta 13 --- EXPLORER MODE // 2024.03.15 @ 23:42:27 Player: Murmillo Result: Destroyed by VX-DLR(R) with Subdweller Laser Performance ------------- Evolutions (0) 0 Regions Visited (3) 600 Robots Destroyed (14) 70 Value Destroyed (449) 449 Prototype IDs (3) 60 Alien Tech Used (0) 0 Bonus (0) 0 TOTAL SCORE: 1179 Bonus ------- None Cogmind --------- Core Integrity 0/250 Matter 300/300 Energy 29/100 System Corruption 0% Temperature Cool (6) Movement Core (50) Location -10/Subcaves Parts ------- > --- POWER (1) -------- (None) > --- PROPULSION (2) --- (None) > --- UTILITY (2) ------ ECM Suite > --- WEAPON (3) ------- (None) > --- INVENTORY (5) ---- Ion Engine Medium Storage Unit High-capacity Battery (250) Signal Interpreter Seismic Detector Peak State ------------ > --- POWER ------------ Ion Engine > --- PROPULSION ------- Light Treads Light Treads > --- UTILITY ---------- ECM Suite Light Armor Plating > --- WEAPON ----------- Beam Rifle Assault Rifle Heavy Assault Rifle > --- INVENTORY -------- Ion Engine Medium Storage Unit High-capacity Battery Signal Interpreter Seismic Detector [Rating: 10] Favorites ----------- Power Ion Engine Engine Ion Engine Propulsion Light Treads Treads Light Treads Utility ECM Suite Device ECM Suite Protection Light Armor Plating Weapon Assault Rifle Energy Gun Beam Rifle Ballistic Gun Assault Rifle Build | -11 -10 -10 -10 ------- Run | Yrd Mat Min Sub Slots Evolved 1 | . 1 . . Power . | . . . . Propulsion . | . . . . Utility . | . . . . Weapon 1 | . 1 . . Parts Attached 11 | 7 1 3 . Power 1 | 1 . . . Engine 1 | 1 . . . Core . | . . . . Reactor . | . . . . Propulsion 2 | 2 . . . Treads 2 | 2 . . . Leg . | . . . . Wheel . | . . . . Hover . | . . . . Flight . | . . . . Utility 2 | 2 . . . Device 1 | 1 . . . Storage . | . . . . Processor . | . . . . Hackware . | . . . . Protection 1 | 1 . . . Artifact . | . . . . Weapon 6 | 2 1 3 . Energy Gun 1 | . . 1 . Energy Cannon . | . . . . Ballistic Gun 5 | 2 1 2 . Ballistic Cannon . | . . . . Launcher . | . . . . Special Weapon . | . . . . Impact Weapon . | . . . . Slashing Weapon . | . . . . Piercing Weapon . | . . . . Special Melee Weapon . | . . . . Unidentified Prototypes . | . . . . Parts Lost 7 | . . . 7 Power 1 | . . . 1 Propulsion 2 | . . . 2 Utility 1 | . . . 1 Weapon 3 | . . . 3 Highest Loss Streak 7 | . . . 7 To Critical Strikes . | . . . . Average Slot Usage (%) 97 | . 99 100 82 Engine 11 | . 12 12 9 Treads 24 | . 25 25 20 Device 12 | . 12 12 12 Protection 11 | . 12 12 8 Energy Gun 3 | . . 3 9 Ballistic Gun 32 | . 36 33 20 Naked Turns . | . . . . Heaviest Build 18 | 14 16 18 18 Greatest Support 40 | 40 40 40 40 Greatest Overweight (x) 3 | 3 . . 1 Average Overweight (x) . | . . . . Largest Inventory Capacity 5 | 5 5 5 5 Average Capacity 5 | 5 5 5 5 Most Carried 5 | 3 5 5 5 Average Carried 4 | 1 3 4 5 Final Capacity 5 | 5 5 5 5 Final Carried 5 | 2 5 5 5 Class Distribution -------------------- 88% | Hacker-Tank 10% | Hacker-Mutant Dominant Class ---------------- Hacker-Tank | -10/Materials Hacker-Tank | -10/Mines Hacker-Tank | -10/Subcaves Resources | -11 -10 -10 -10 ----------- Run | Yrd Mat Min Sub Matter Collected 538 | 203 149 138 48 Remotely . | . . . . Salvage Created 489 | . 179 168 142 Parts 29 | . 14 8 7 Haulers Intercepted 1 | . 1 . . Recyclers Shooed . | . . . . Parts Field Recycled . | . . . . Retrieved Matter . | . . . . Parts Self-Destructed . | . . . . Prevented . | . . . . Kills | -11 -10 -10 -10 ------- Run | Yrd Mat Min Sub Combat Hostiles Destroyed 12 | . 3 5 4 Guns 12 | . 3 5 4 Classes Destroyed 6 | . 3 2 1 Hauler 1 | . 1 . . Watcher 1 | . 1 . . Swarmer 2 | . . 2 . Grunt 5 | . 3 2 . Sentry 1 | . . 1 . Subdweller 4 | . . . 4 Best Kill Streak 5 | . 5 2 3 Combat Bots Only 3 | . 2 2 3 Max Kills in Single Turn 2 | . 1 2 1 Gunslinging 1 | . . 1 . Exploded . | . . . . Melee . | . . . . Uniques/NPCs Destroyed . | . . . . Combat | -11 -10 -10 -10 -------- Run | Yrd Mat Min Sub Hostile Shots Fired 102 | . 7 25 70 Missed 23 | . 4 6 13 Damage Taken 1046 | . 20 139 887 Core 259 | . 14 14 231 Absorbed by Shields . | . . . . Ignored by Resistances 626 | . 12 91 523 Core Remaining (%) 100 | 100 . . . Volleys Fired 31 | . 8 12 11 Largest 3 | . 3 3 3 Hottest 99 | . 60 60 99 Shots Fired 92 | . 24 36 32 Gun 92 | . 24 36 32 Cannon . | . . . . Launcher . | . . . . Special . | . . . . Kinetic 81 | . 24 36 21 Thermal 11 | . . . 11 Explosive . | . . . . Electromagnetic . | . . . . Robot Hit Streak 40 | . 11 12 40 Robot Miss Streak 2 | . 2 1 . Penetration Max . | . . . . Secondary Targets 4 | . 2 1 1 Max Gunslinging Chain 1 | . 1 1 1 Shots Hit Robots 79 | . 18 29 32 Core Hits 27 | . 11 9 7 Critical Kills . | . . . . Critical Parts Destroyed . | . . . . Critical Strikes 1 | . . . 1 Burn 1 | . . . 1 Melee Attacks . | . . . . Impact . | . . . . Slashing . | . . . . Piercing . | . . . . Sneak Attacks . | . . . . Combat Hostiles . | . . . . Follow-up Attacks . | . . . . Damage Inflicted 1048 | . 229 366 453 Guns 1048 | . 229 366 453 Cannons . | . . . . Explosions . | . . . . Melee . | . . . . Ramming . | . . . . Kinetic 885 | . 229 366 290 Thermal 163 | . . . 163 Explosive . | . . . . Electromagnetic . | . . . . Impact . | . . . . Slashing . | . . . . Piercing . | . . . . Highest Corruption . | . . . . Average Corruption . | . . . . Corruption Purged . | . . . . Corruption Blocked . | . . . . Overload Shots . | . . . . Overflow Damage . | . . . . Projectiles . | . . . . Explosions . | . . . . Melee . | . . . . Knockbacks . | . . . . Impact . | . . . . Kinetic . | . . . . Secondary . | . . . . Self-Inflicted Damage . | . . . . Shots . | . . . . Rammed . | . . . . Targets Rammed . | . . . . Kicked . | . . . . Crushed . | . . . . Highest Temperature 178 | . 24 131 178 Average Temperature 54 | . 11 58 90 Received Heat Transfer 509 | . 18 102 389 Siege Activations . | . . . . Robots Corrupted . | . . . . Combat Hostiles . | . . . . Parts Fried . | . . . . Impact Corruptions . | . . . . Robots Melted . | . . . . Combat Hostiles . | . . . . Parts Melted 1 | . . . 1 Heat Transferred 481 | . . . 481 Parts Sabotaged . | . . . . Parts Stolen . | . . . . Parts Stripped . | . . . . Power Chain Reactions . | . . . . Alert | -11 -10 -10 -10 ------- Run | Yrd Mat Min Sub Peak Influence 95 | . 95 80 . Initial 26 | . . 26 . Average 33 | . 77 25 . Maximum Alert Level . | . . . . Low Security (%) 100 | 100 100 100 . Level 1 . | . . . . Level 2 . | . . . . Level 3 . | . . . . Level 4 . | . . . . Level 5 . | . . . . High Security . | . . . . Max Security . | . . . . Squads Dispatched . | . . . . Investigation . | . . . . Extermination . | . . . . Reinforcement . | . . . . Assault . | . . . . Garrison . | . . . . Intercept . | . . . . Searches Triggered . | . . . . Construction Impeded . | . . . . Haulers Reinforced . | . . . . Active Scanning Responses . | . . . . Cargo Convoy Interrupts . | . . . . Stealth | -11 -10 -10 -10 --------- Run | Yrd Mat Min Sub Distress Signals 2 | . 2 . . Communications Jammed . | . . . . Distress Signals . | . . . . Times Spotted 22 | . 6 5 11 Peak Tracking Total 8 | . 4 2 8 Tactical Retreats 2 | . 2 . . Traps | -11 -10 -10 -10 ------- Run | Yrd Mat Min Sub Traps Triggered . | . . . . Indirectly . | . . . . Trap Hack Attempts . | . . . . Triggered . | . . . . Disarmed . | . . . . Reprogrammed . | . . . . Reused . | . . . . Traps Extracted . | . . . . Installed . | . . . . Triggered . | . . . . Machines | -11 -10 -10 -10 ---------- Run | Yrd Mat Min Sub Machines Disabled 1 | . . 1 . Max in Single Turn 1 | . . 1 . Machines Repaired . | . . . . Machines Dismantled . | . . . . Machines Sabotaged . | . . . . Overloaded Fab Kills . | . . . . Hacking | -11 -10 -10 -10 --------- Run | Yrd Mat Min Sub Machines Accessed 6 | . 5 1 . Terminals 4 | . 4 . . Fabricators . | . . . . Repair Stations . | . . . . Recycling Units 1 | . 1 . . Scanalyzers . | . . . . Garrison Access . | . . . . Total Hacks 21 | . 20 1 . Successful 17 | . 16 1 . Failed 4 | . 4 . . Catastrophic . | . . . . Database Lockouts . | . . . . Manual . | . . . . Terminals 19 | . 19 . . Fabricators . | . . . . Repair Stations . | . . . . Recycling Units 1 | . 1 . . Scanalyzers . | . . . . Garrison Access . | . . . . Terminal Hacks 16 | . 15 1 . Record 5 | . 5 . . Prototype ID Bank 1 | . 1 . . Open Door 1 | . . 1 . Emergency Access Points 2 | . 2 . . Terminal Index 1 | . 1 . . Alert Level 1 | . 1 . . Locate Traps 2 | . 2 . . Dispatch Records 1 | . 1 . . Patrol Status 1 | . 1 . . Zone Layout 1 | . 1 . . Fabricator Hacks . | . . . . Repair Station Hacks . | . . . . Recycling Unit Hacks 1 | . 1 . . Report Inventory 1 | . 1 . . Scanalyzer . | . . . . Garrison Access Hacks . | . . . . Unauthorized Hacks . | . . . . Terminals . | . . . . Fabricators . | . . . . Repair Stations . | . . . . Recycling Units . | . . . . Scanalyzers . | . . . . Garrison Access . | . . . . Data Cores Recovered . | . . . . Used . | . . . . Hacking Detections 4 | . 4 . . Full Trace Events . | . . . . Feedback Events . | . . . . Feedback Blocked . | . . . . Robot Schematics Acquired . | . . . . Robots Built . | . . . . Authchips . | . . . . Time . | . . . . Total Robot Build Rating . | . . . . Part Schematics Acquired . | . . . . Parts Built . | . . . . Authchips . | . . . . Time . | . . . . Total Part Build Rating . | . . . . Parts Repaired . | . . . . Time . | . . . . Parts Recycled . | . . . . Recycled Matter . | . . . . Retrieved Matter . | . . . . Retrieved Components . | . . . . Parts Scanalyzed . | . . . . Part Schematics Acquired . | . . . . Parts Damaged . | . . . . Bothacking | -11 -10 -10 -10 ------------ Run | Yrd Mat Min Sub Used RIF Installer . | . . . . Robots Hacked . | . . . . Non-combat . | . . . . Combat . | . . . . Robot Hacks Applied . | . . . . Relay Couplers Released . | . . . . Fabnet Peak Effective % . | . . . . Robots Rewired . | . . . . Allies Hacked . | . . . . Hacks Repelled . | . . . . Allies | -11 -10 -10 -10 -------- Run | Yrd Mat Min Sub Total Allies . | . . . . Largest Group . | . . . . Highest-Rated Group . | . . . . Highest-Rated Ally . | . . . . Total Orders . | . . . . Ally Attacks . | . . . . Total Damage . | . . . . Kills . | . . . . Allies Corrupted . | . . . . Allies Melted . | . . . . Intel | -11 -10 -10 -10 ------- Run | Yrd Mat Min Sub Robot Analysis Total . | . . . . Derelict Logs Recovered 4 | . . 2 2 Drone Launches . | . . . . Drone Recoveries . | . . . . Exploration | -11 -10 -10 -10 ------------- Run | Yrd Mat Min Sub Turns Passed 1902 | 113 308 1257 224 Spaces Moved 1146 | 64 174 745 163 Core 91 | 24 . . 67 Treads 1055 | 40 174 745 96 Legs . | . . . . Wheels . | . . . . Hover . | . . . . Flight . | . . . . Fastest Speed 50 | 50 160 160 50 Average Speed 152 | 136 160 160 115 Slowest Speed 200 | 200 160 160 160 Overloaded Moves . | . . . . Propulsion Burnouts . | . . . . Robots Hopped . | . . . . Cave-ins Triggered . | . . . . Exploration Rate (%) 39 | 4 43 99 12 Regions Visited 3 Branch Regions 2 Pre-discovered Areas 1 | . . 1 . Known Exits Taken 3 | 1 1 1 . Unknown Exits Taken . | . . . . Scrap Searched 1 | . . 1 . Spaces Dug . | . . . . Terrain Destroyed . | . . . . Melee . | . . . . Projectile . | . . . . AOE . | . . . . Terrain Rammed . | . . . . Walls Destroyed . | . . . . Machines Disabled . | . . . . Actions | -11 -10 -10 -10 --------- Run | Yrd Mat Min Sub Total 1235 | 90 186 785 174 Wait 30 | 11 . 19 . Move 1143 | 63 173 744 163 Hop . | . . . . Pick Up 15 | 9 4 2 . Fast Attach 1 | . . 1 . Attach 8 | 7 1 . . Detach . | . . . . Swap 2 | . . 2 . Drop 5 | . . 5 . Fire 31 | . 8 12 11 Melee . | . . . . Ram . | . . . . Kick . | . . . . Crush . | . . . . Escape Stasis . | . . . . Rewire . | . . . . Trap . | . . . . Miscellaneous . | . . . . Route ------- -11/Scrapyard -10/Materials -10/Mines (discovered 4 exits: *Mat x2 / *Exi / *Sub) -10/Subcaves History --------- Turn | Location | Event 11 | -11/Scrapyard | Identified exit to Materials 11 | -11/Scrapyard | Discovered exit to Materials (range 15) 114 | -11/Scrapyard | Entered Materials 114 | -10/Materials | Evolved 1 slot: Weapon x1 414 | -10/Materials | Identified exit to Mines 414 | -10/Materials | Discovered exit to Mines (range 6) 422 | -10/Materials | Entered Mines 444 | -10/Mines | Build established: Hacker-Tank 451 | -10/Mines | Identified exit to Materials 451 | -10/Mines | Discovered exit to Materials (range 7) 571 | -10/Mines | Found a hidden stash of uninstalled traps 633 | -10/Mines | Learned location of Mines (-9) 680 | -10/Mines | Learned Materials terminal intel 1014 | -10/Mines | Deemed a non-threat by the Exiles lab entrance 1014 | -10/Mines | Identified exit to Exiles 1014 | -10/Mines | Discovered exit to Exiles (range 5) 1163 | -10/Mines | Discovered exit to Materials (range 11) 1259 | -10/Mines | Joined a pair of Derelicts in attacking an 0b10 outpost 1393 | -10/Mines | Found the Drone Emporium 1668 | -10/Mines | Identified exit to Subcaves 1668 | -10/Mines | Discovered exit to Subcaves (range 6) 1679 | -10/Mines | Entered Subcaves 1686 | -10/Subcaves | Learned Materials stockpile data 1702 | -10/Subcaves | Learned Materials terminal intel 1806 | -10/Subcaves | Ambushed by swarm of Subdwellers 1809 | -10/Subcaves | Ambushed by Subdwellers from Twisted Machinery 1818 | -10/Subcaves | Ambushed by Subdwellers from Twisted Machinery 1824 | -10/Subcaves | A swath of the cavern ceiling suddenly collapsed 1859 | -10/Subcaves | Lost 4 allies 1862 | -10/Subcaves | Core integrity fell below 50% 1900 | -10/Subcaves | Core integrity fell below 20% 1901 | -10/Subcaves | Lost 7 parts (1p2n1u3w) 1903 | -10/Subcaves | Destroyed by VX-DLR(R) with Subdweller Laser Last Messages --------------- DN-IQG(u) builds Twisted Machinery. Lgt. Armor Plating destroyed. DN-IQG(u) builds Twisted Machinery. Disposable Heat Sink melted. W4-BHQ(R) destroyed. DN-IQG(u) builds Twisted Machinery. MV-C7D(R) destroyed. DN-IQG(u) builds Twisted Machinery. Assault Rifle destroyed. ON-D6T(R) destroyed. DN-IQG(u) builds Twisted Machinery. Beam Rifle destroyed. Acquired 42 matter. Acquired 6 matter. VQ-2HL(R) affixes Scrap Shield Fragment to Scrap Shield. DN-IQG(u) builds Twisted Machinery. Ion Engine destroyed. Lgt. Treads destroyed. Hvy. Assault Rifle destroyed. DN-IQG(u) builds Twisted Machinery. Map ----- +----------------------------------------------------+ | ??????????????## #?# #??## #??????????? | | ???????????????#### ####?#### #??## #??????????? | | ??????????????????###?????## #?## #??????????? | | ??????????????????????????# ### #??????????? | | ??????????????????????????## ## #??????????? | | ??????????????????########## ####??????????? | | ??????????????????# # ##?????????????? | | ?????????????????## #??????????????? | | ?????????????????# #??????????????? | | ?????????????????# # ! #??????????????? | | ?????????????????# ### ## ###??????????????? | | ????????????????### ###### ###????????????????? | | ???????????????## #????# #?????????????????? | | ???????????????# ##???# ##?????????????????? | | ???????????????## ##???# ##????????????????? | | ????????????????# ###?## #????????????????? | | ????????????????### #??## ##???????????????? | | ??????????????????# #???# #???????????????? | | ?????????????????## #???# #???????????????? | | ?????????????????# ##?? #???????????????? | | ?????????????????# ## ### ##???????????????? | | ?????????????????##### R ##????????????????? | | ?????????????????????### #?????????????????? | | ???????????????????????## ##?????????????????? | | ????????????????????????# #??????????????????? | | ????????????????????????#@ #??????????????????? | | ???????????????????????# ????????????? | | ???????????????????????# ####???????????? | | ???????????????????????# ##??????????????? | | ??????????????????????? ## #???????????????? | | ??????????????????????? ##?# #???????????????? | | ?????????????????????? ###??? #??????????????? | | ?????????????????????? #??????? ?????????????? | | ????????????????????? ???????? ????????????? | | ????????????????????? ????????? #???????????? | | ???????????????????? ?????????? #????????????? | | ???????????????????? ???????????? #????????????? | | ??????????????????? ##???????????????????????????? | | ???????????????????#?????????????????????????????? | | ?????????????????????????????????????????????????? | | ?????????????????????????????????????????????????? | | ?????????????????????????????????????????????????? | | ?????????????????????????????????????????????????? | | ?????????????????????????????????????????????????? | | ?????????????????????????????????????????????????? | | ?????????????????????????????????????????????????? | | ?????????????????????????????????????????????????? | | ?????????????????????????????????????????????????? | | ?????????????????????????????????????????????????? | | ?????????????????????????????????????????????????? | +----------------------------------------------------+ Best States ------------- Heat Dissipation 25 Energy Generation 10 Energy Capacity 250 Matter Stores 300 Matter Capacity 300 Sight Range 16 Terrain Scan Density 10 ECM Strength 1 Armor Coverage 150 Resistance: KI 35 Resistance: TH 35 Resistance: EX 35 Resistance: EM 35 Resistance: I 35 Resistance: S 35 Resistance: P 35 Evasion (%) 50 Recoil Reduction 2 Offensive Hacking 20 Item Schematics ----------------- None Robot Schematics ------------------ None Fabricated ------------ Nothing Alien Tech Used ----------------- None Achievements -------------- None Challenges ------------ None Game ------ Seed HeavyCoilMapper Manual? 0 Play Time 00:32:23 Cumulative 6.9 hours Start 2024.03.15 @ 23:04:03 End 2024.03.15 @ 23:42:27 Sessions 1 Manual Loads 0 Difficulty Explorer Special Mode None Game No. 4 Rogue 0 Adventurer 0 Explorer 4 Win Type - Total 0 Types 0/0/0/0/0/0/0/0/0 Lore% 12 Gallery% 10 Achievement% 13 Wizard Run 0 Options --------- Layout 0 ASCII 0 Keyboard 0 Movement Mouse Keybinds 0 Fullscreen 1 Font 24/Smallcaps Map View 113x50 Zoom Use 0% Tactical HUD 0 Map Filters NONE Filters NONE Steam 1 RUN: aaf9df66-00ca-4ac7-92ab-75a6f9529eef